bitfinex-derivatives/quotes_ETHF0:USTF0_20250602
["timestamp","ask_amount","ask_price","bid_price","bid_amount"]
[1748853606014,27.99885,2506.9,2506.8,0.00597241]
[1748853608114,5.02985,2506.9,2506.8,0.00597241]
[1748853608327,19.24245,2506.9,2506.8,0.00597241]
[1748853609117,0.47845,2506.9,2506.8,0.00597241]
[1748853609325,23.44445,2506.9,2506.8,0.00597241]
[1748853609514,4.68145,2506.9,2506.8,0.00597241]
[1748853609716,23.44445,2506.9,2506.8,0.00597241]
[1748853612020,23.64385,2506.9,2506.8,0.00597241]
[1748853612518,23.64385,2506.9,2506.8,1.19972398]
[1748853612920,23.64385,2506.9,2506.8,1.19968417]
[1748853613111,0.67785,2506.9,2506.8,1.19968417]
[1748853613317,19.43985,2506.9,2506.8,1.19968417]
[1748853613924,0.1994,2506.9,2506.8,6.19968417]
[1748853614129,19.43985,2506.9,2506.8,6.18719242]
[1748853614322,0.1994,2506.9,2506.8,7.77928854]
[1748853614523,0.67785,2506.9,2506.8,9.16108854]
[1748853614824,19.43985,2506.9,2506.8,7.56899242]
[1748853615026,18.9614,2506.9,2506.8,7.56899242]
[1748853615228,0.67785,2506.9,2506.8,9.95549143]
[1748853615524,19.43985,2506.9,2506.8,7.56899242]
[1748853616219,19.43985,2506.9,2506.8,9.9553784]
[1748853616418,19.43985,2506.9,2506.8,7.56899242]
[1748853616618,19.43985,2506.9,2506.8,10.43390473]
[1748853616821,19.43985,2506.9,2506.8,9.95543473]
[1748853617120,0.1994,2506.9,2506.8,10.43390473]
[1748853617325,18.9604,2506.9,2506.8,8.03627939]
[1748853617926,0.1994,2506.9,2506.8,8.03627939]
[1748853618430,0.00597241,2507.1,2507.0,0.47843]
[1748853618731,0.00597241,2507.1,2507.0,10.96790637]
[1748853618915,18.76497241,2507.1,2507.0,10.96790637]
[1748853619118,18.76497241,2507.1,2507.0,12.99290637]
[1748853619328,18.76497241,2507.1,2507.0,53.79290637]
[1748853620030,18.76497241,2507.1,2507.0,54.27133637]
[1748853620228,18.76497241,2507.1,2507.0,53.79290637]
[1748853620932,19.24338241,2507.1,2507.0,53.79290637]
[1748853621525,19.24338241,2507.1,2507.0,54.47684547]
[1748853621726,19.24338241,2507.1,2507.0,53.30756939]
[1748853621932,19.24338241,2507.1,2507.0,54.47684343]
[1748853622135,19.24338241,2507.1,2507.0,52.88677404]
[1748853622324,18.76397241,2507.1,2507.0,54.95527343]
[1748853622631,18.76397241,2507.1,2507.0,48.36520404]
[1748853622832,18.76297241,2507.1,2507.0,49.95527343]
[1748853623126,19.24138241,2507.1,2507.0,45.86177404]
[1748853623332,19.24138241,2507.1,2507.0,41.96927404]
[1748853623635,20.73846788,2507.1,2507.0,41.96927404]
[1748853623829,20.73846788,2507.1,2507.0,40.8]
[1748853624235,0.47844,2506.9,2506.8,0.0766703]
[1748853624429,22.948,2506.9,2506.8,1.24621396]
[1748853624630,23.42644,2506.9,2506.8,42.04621396]
[1748853624830,24.11124,2506.9,2506.8,42.04621396]
[1748853625133,24.31871715,2506.9,2506.8,42.04621396]
[1748853625636,24.31871947,2506.9,2506.8,42.04621396]
[1748853625837,24.31871947,2506.9,2506.8,40.8766703]
[1748853626134,24.31871947,2506.9,2506.8,42.04642312]
[1748853626327,24.31875518,2506.9,2506.8,42.04642312]
[1748853626529,23.84028163,2506.9,2506.3,1.87220635]
[1748853626728,0.47851,2506.6,2506.4,1.17001837]
[1748853627024,18.96448734,2506.5,2506.3,1.87220635]
[1748853627225,18.757,2506.5,2506.4,1.16993079]
[1748853627431,18.9644641,2506.5,2506.4,41.96993079]
[1748853627632,23.1564641,2506.5,2506.4,41.96993079]
[1748853628033,23.15647242,2506.5,2506.4,43.82687079]
[1748853628239,22.949,2506.5,2506.4,43.82687079]
[1748853628426,23.15646965,2506.5,2506.4,43.82687079]
[1748853628630,22.949,2506.5,2506.4,43.82687079]
[1748853628929,23.15645928,2506.5,2506.4,43.82687079]
[1748853629126,18.96446372,2506.5,2506.4,45.01957714]
[1748853629629,18.96446372,2506.5,2506.4,43.82687079]
[1748853629630,18.757,2506.5,2506.4,43.82687079]
[1748853630133,18.757,2506.5,2506.4,44.93840018]
[1748853630335,18.757,2506.5,2506.4,44.93847904]
[1748853630933,19.23552,2506.5,2506.4,44.93847904]
[1748853631235,18.757,2506.5,2506.4,44.93847904]
[1748853631535,1.16325,2506.9,2506.8,0.07069789]
[1748853631732,24.31885377,2506.9,2506.8,1.26138799]
[1748853632033,24.31885598,2506.9,2506.8,1.26138799]
[1748853632240,24.31885573,2506.9,2506.8,1.26138799]
[1748853632639,24.31885638,2506.9,2506.8,1.26138799]
[1748853632838,25.70285638,2506.9,2506.8,1.26138799]
[1748853633432,25.70284489,2506.9,2506.8,1.26138799]
[1748853633949,25.70285135,2506.9,2506.8,1.26138799]
[1748853634142,25.70285086,2506.9,2506.8,1.26138799]
[1748853634335,25.702837,2506.9,2506.8,1.26138799]
[1748853634533,25.702837,2506.9,2506.8,0.07069789]
[1748853634736,25.702837,2506.9,2506.8,1.26128505]
[1748853635030,25.70284551,2506.9,2506.8,1.26128505]
[1748853635337,25.70284442,2506.9,2506.8,1.26128505]
[1748853635653,25.49525,2506.9,2506.8,0.07069789]
[1748853636146,19.64834718,2506.9,2506.8,1.2612806]
[1748853636439,20.12679718,2506.9,2506.8,1.2612806]
[1748853636936,20.12676944,2506.9,2506.8,1.2612806]
[1748853637137,21.43847157,2506.9,2506.8,1.2612806]
[1748853637333,21.43847012,2506.9,2506.8,1.2612806]
[1748853637636,21.43847184,2506.9,2506.8,1.2612806]
[1748853637840,21.43847448,2506.9,2506.8,1.2612806]
[1748853638540,21.43848791,2506.9,2506.8,1.2612806]
[1748853638933,21.23095,2506.9,2506.8,1.26137885]
[1748853639132,0.89233647,2506.9,2506.8,1.26137885]
[1748853639334,1.15503,2507.0,2506.8,6.99545475]
[1748853639335,4.67043,2507.0,2506.8,6.99545475]
[1748853639535,0.48440241,2507.1,2506.9,2.38355686]
[1748853639743,0.48438241,2507.1,2507.0,4.39835686]
[1748853639941,19.44691628,2507.1,2507.0,4.39835686]
[1748853640142,0.67748241,2507.1,2507.0,3.20548096]
[1748853640340,0.19907241,2507.1,2507.0,4.79555035]
[1748853640539,18.95407241,2507.1,2507.0,3.68391096]
[1748853640740,18.95407241,2507.1,2507.0,44.48391096]
[1748853641044,0.19907241,2507.1,2507.0,46.86901505]
[1748853641235,0.67748241,2507.1,2507.0,44.00548096]
[1748853641638,0.19907241,2507.1,2507.0,44.48391096]
[1748853642540,0.67748241,2507.1,2507.0,46.38873174]
[1748853642741,0.67748241,2507.1,2507.0,45.59456404]
[1748853643151,0.67748241,2507.1,2507.0,44.40388308]
[1748853643442,0.67748241,2507.1,2507.0,45.59358709]
[1748853643643,0.67748241,2507.1,2507.0,43.18163168]
[1748853644043,2.26410991,2507.1,2507.0,43.18163168]
[1748853644239,2.05668241,2507.1,2507.0,43.18163168]
[1748853644444,2.26412746,2507.1,2507.0,43.18163168]
[1748853644639,2.26412314,2507.1,2507.0,41.98970401]
[1748853644840,2.2641286,2507.1,2507.0,41.98970401]
[1748853645746,2.26413176,2507.1,2507.0,41.98970401]
[1748853646046,2.26413176,2507.1,2506.8,0.07069789]
[1748853646047,0.47845,2506.9,2506.8,0.07069789]
[1748853646344,4.87687786,2506.9,2506.8,1.26064248]
[1748853646543,4.87687786,2506.9,2506.8,42.06064248]
[1748853646747,4.87687731,2506.9,2506.8,42.06064248]
[1748853647249,4.87689076,2506.9,2506.8,42.06064248]
[1748853647550,4.87689067,2506.9,2506.8,42.06069914]
[1748853647749,4.66945,2506.9,2506.8,42.06069914]
[1748853647945,4.87689205,2506.9,2506.8,42.06069914]
[1748853648246,4.87689434,2506.9,2506.8,42.06069914]
[1748853648649,23.62789434,2506.9,2506.8,42.06069914]
[1748853648946,23.62792175,2506.9,2506.8,42.06069914]
[1748853649150,23.42045,2506.9,2506.8,42.06069914]
[1748853649345,23.6279206,2506.9,2506.8,42.06069914]
[1748853649653,23.62791905,2506.9,2506.8,42.06069914]
[1748853649850,23.42045,2506.9,2506.8,42.06069914]
[1748853650051,23.62793228,2506.9,2506.8,42.06069914]
[1748853650751,23.42045,2506.9,2506.8,42.06069914]
[1748853651047,23.62795226,2506.9,2506.8,42.06069914]
[1748853651252,23.62795715,2506.9,2506.8,42.06069914]
[1748853651551,23.62794938,2506.9,2506.8,42.06069914]
[1748853651750,23.62795045,2506.9,2506.8,42.06069914]
[1748853652341,23.6279862,2506.9,2506.8,42.06069914]
[1748853652552,23.6279858,2506.9,2506.8,42.06069914]
[1748853652849,23.42045,2506.9,2506.8,42.06069914]
[1748853653250,23.6280135,2506.9,2506.8,42.06069914]
[1748853653754,0.6860135,2506.9,2506.8,42.06069914]
[1748853654055,23.62402367,2506.9,2506.8,42.06069914]
[1748853654251,23.62401226,2506.9,2506.8,42.06069914]
[1748853654452,23.41645,2506.9,2506.8,42.06069914]
[1748853654751,23.6240101,2506.9,2506.8,42.72929914]
[1748853655055,23.62400658,2506.9,2506.8,42.72929914]
[1748853655760,23.62400658,2506.9,2506.8,44.05439914]
[1748853655949,4.87300658,2506.9,2506.8,44.05439914]
[1748853656146,4.87297957,2506.9,2506.8,44.05439914]
[1748853656341,4.66545,2506.9,2506.8,45.24807322]
[1748853656553,23.41645,2506.9,2506.8,45.24807322]
[1748853656753,0.47845,2506.9,2506.8,45.24807322]
[1748853656950,19.22945,2506.9,2506.8,45.24807322]
[1748853657257,19.43699096,2506.9,2506.8,45.24807322]
[1748853657651,19.22945,2506.9,2506.8,45.24807322]
[1748853657950,19.43602496,2506.9,2506.8,45.24807322]
[1748853658164,19.22845,2506.9,2506.8,45.24807322]
[1748853658453,19.43604544,2506.9,2506.8,45.24807322]
[1748853658655,19.4360727,2506.9,2506.8,45.24807322]
[1748853658956,19.43608692,2506.9,2506.8,45.24807322]
[1748853659256,19.43608692,2506.9,2506.8,44.05507684]
[1748853659555,19.22845,2506.9,2506.8,44.05507684]
[1748853659756,19.43609832,2506.9,2506.8,44.05507684]
[1748853660058,19.43609705,2506.9,2506.8,44.05507684]
[1748853660353,19.43609714,2506.9,2506.8,44.05507684]
[1748853660555,19.43609717,2506.9,2506.8,44.05525449]
[1748853660758,19.43609688,2506.9,2506.8,44.05525449]
[1748853661156,19.43609688,2506.9,2506.8,42.73015449]
[1748853661455,19.62919688,2506.9,2506.8,43.92344055]
[1748853661759,19.42155,2506.9,2506.8,43.92344055]
[1748853661945,19.629213,2506.9,2506.8,45.25884055]
[1748853662256,19.62921403,2506.9,2506.8,44.06555449]
[1748853662555,19.62922662,2506.9,2506.8,45.25892688]
[1748853662747,19.62919715,2506.9,2506.8,44.06555449]
[1748853662944,19.62919715,2506.9,2506.8,43.25503519]
[1748853663148,19.62919975,2506.9,2506.8,42.06155449]
[1748853663341,19.6291887,2506.9,2506.8,42.06155449]
[1748853663853,19.42155,2506.9,2506.8,42.06155449]
[1748853664045,19.62918506,2506.9,2506.8,42.06155449]
[1748853664246,19.62918498,2506.9,2506.8,42.06155449]
[1748853665156,19.62919457,2506.9,2506.8,42.06155449]
[1748853665356,19.62919419,2506.9,2506.8,42.06155449]
[1748853665553,19.62919614,2506.9,2506.8,42.06155449]
[1748853665849,19.42155,2506.9,2506.8,42.06155449]
[1748853666055,19.62919853,2506.9,2506.8,40.87069789]
[1748853666254,19.62919311,2506.9,2506.8,42.06208377]
[1748853666656,19.62919311,2506.9,2506.8,40.87069789]
[1748853667044,19.62917019,2506.9,2506.8,40.87069789]
[1748853667251,19.62916963,2506.9,2506.8,40.87069789]
[1748853667757,19.42155,2506.9,2506.8,40.87069789]
[1748853667958,19.62914789,2506.9,2506.8,40.87069789]
[1748853668255,19.62913682,2506.9,2506.8,40.87069789]
[1748853668555,19.42155,2506.9,2506.8,40.87069789]
[1748853668750,21.01910439,2506.9,2506.8,40.87069789]
[1748853669155,21.01910246,2506.9,2506.8,40.87069789]
[1748853669347,20.81245,2506.9,2506.8,40.87069789]
[1748853669551,2.26909638,2506.9,2506.8,40.87069789]
[1748853669750,21.01709638,2506.9,2506.8,42.06171167]
[1748853670049,21.01709743,2506.9,2506.8,42.06171167]
[1748853670256,21.0170982,2506.9,2506.8,42.06171167]
[1748853670450,21.01710362,2506.9,2506.8,42.06171167]
[1748853670957,20.81045,2506.9,2506.8,42.06171167]
[1748853671451,2.2691097,2506.9,2506.8,42.06171167]
[1748853671652,21.0161097,2506.9,2506.8,42.06171167]
[1748853671852,21.01620126,2506.9,2506.8,42.06171167]
[1748853672054,21.01620021,2506.9,2506.8,42.06171167]
[1748853672360,21.0161993,2506.9,2506.8,42.06264509]
[1748853672562,20.80945,2506.9,2506.8,42.06264509]
[1748853672756,21.01620133,2506.9,2506.8,42.06264509]
[1748853673453,20.80945,2506.9,2506.8,42.06264509]
[1748853673654,21.01623096,2506.9,2506.8,42.06264509]
[1748853673950,20.80945,2506.9,2506.8,42.06264509]
[1748853674151,21.01626394,2506.9,2506.8,42.06264509]
[1748853674351,20.80945,2506.9,2506.8,42.06264509]
[1748853674552,21.01626394,2506.9,2506.8,42.06264509]
[1748853674755,2.06245,2506.9,2506.8,42.06264509]
[1748853674958,19.62436151,2506.9,2506.8,42.06264509]
[1748853675157,19.62439525,2506.9,2506.8,42.06264509]
[1748853675462,19.6250464,2506.9,2506.8,43.37034509]
[1748853675651,19.62508781,2506.9,2506.8,43.37034509]
[1748853675851,19.41755,2506.9,2506.8,43.37034509]
[1748853676249,0.40063834,2506.9,2506.8,43.37034509]
[1748853676450,19.62510059,2506.9,2506.8,44.9619223]
[1748853676857,19.41755,2506.9,2506.8,44.96263406]
[1748853677258,19.62511998,2506.9,2506.8,44.96263406]
[1748853677763,19.62511532,2506.9,2506.8,44.96263406]
[1748853678064,19.62511143,2506.9,2506.8,44.96263406]
[1748853678661,19.62511143,2506.9,2506.8,43.65493406]
[1748853678855,19.62510671,2506.9,2506.8,43.65493406]
[1748853679058,19.62511537,2506.9,2506.8,43.65493406]
[1748853679271,19.62510782,2506.9,2506.8,40.87069789]
[1748853679658,19.6251033,2506.9,2506.8,40.87069789]
[1748853680356,19.41755,2506.9,2506.8,40.87069789]
[1748853680558,19.62507254,2506.9,2506.8,40.87069789]
[1748853680758,19.62506262,2506.9,2506.8,40.87069789]
[1748853680965,19.62506276,2506.9,2506.8,40.87069789]
[1748853681257,0.4785,2506.6,2506.5,3.15171801]
[1748853681463,0.47854,2506.4,2506.3,1.59328071]
[1748853681652,3.89385484,2506.4,2506.3,2.3865115]
[1748853681965,0.4786,2506.1,2506.0,1.55951502]
[1748853682269,0.47864,2505.9,2505.8,40.8]
[1748853682561,0.68606736,2505.9,2505.8,40.8]
[1748853682862,0.68587158,2505.9,2505.8,40.8]
[1748853683065,0.68587589,2505.9,2505.8,40.8]
[1748853683364,0.68587589,2505.9,2505.7,2.021]
[1748853683365,0.47866,2505.8,2505.7,2.021]
[1748853683565,19.62839589,2505.8,2505.7,0.6428]
[1748853683963,0.4787,2505.6,2505.5,1.3635]
[1748853684161,0.4787,2505.6,2505.5,42.8063]
[1748853684368,0.68588038,2505.6,2505.5,40.8]
[1748853684568,0.68587923,2505.6,2505.5,40.8]
[1748853685259,0.4787,2505.6,2505.5,41.4596]
[1748853685661,0.4787,2505.6,2505.5,42.857]
[1748853687068,0.4787,2505.6,2505.5,41.4596]
[1748853687270,0.47881,2505.0,2504.9,3.2078]
[1748853687565,0.47881,2505.0,2504.4,2.0675]
[1748853687566,0.47891,2504.5,2504.4,2.0675]
[1748853687759,22.42971,2504.5,2504.4,2.0675]
[1748853688066,19.22191,2504.5,2504.4,2.0675]
[1748853688258,19.22191,2504.5,2504.4,42.8675]
[1748853690771,19.22191,2504.5,2504.4,42.1974]
[1748853692166,0.47891,2504.5,2504.4,42.1974]
[1748853692368,19.22691,2504.5,2504.4,42.1974]
[1748853693671,1.19732,2504.4,2503.2,3.2078]
[1748853693866,3.21378444,2504.1,2503.5,3.2078]
[1748853694066,18.75,2504.0,2503.6,1.3946]
[1748853694265,0.47905,2503.8,2503.7,40.8]
[1748853697474,3.68685,2503.8,2503.7,40.8]
[1748853699571,22.43885,2503.8,2503.7,40.8]
[1748853700373,23.81555,2503.8,2503.7,40.8]
[1748853701477,5.06355,2503.8,2503.7,40.8]
[1748853701667,28.00455,2503.8,2503.7,40.8]
[1748853702872,28.20415,2503.8,2503.7,40.8]
[1748853703974,26.82845,2503.8,2503.7,40.8]
[1748853705069,3.88645,2503.8,2503.7,40.8]
[1748853705268,26.82845,2503.8,2503.7,40.8]
[1748853705473,3.88645,2503.8,2503.7,40.8]
[1748853705672,26.83045,2503.8,2503.7,40.8]
[1748853707365,22.64345,2503.8,2503.7,40.8]
[1748853709580,22.64345,2503.8,2503.7,40.87069789]
[1748853712575,23.29455,2503.8,2503.7,40.87069789]
[1748853713382,23.96525,2503.8,2503.7,40.87069789]
[1748853714674,24.1749551,2503.8,2503.7,40.87069789]
[1748853714875,23.96525,2503.8,2503.7,40.87069789]
[1748853715374,24.17498924,2503.8,2503.7,40.87069789]
[1748853716069,24.17534664,2503.8,2503.7,40.87069789]
[1748853716379,24.17534621,2503.8,2503.7,40.87069789]
[1748853716578,24.17534668,2503.8,2503.7,40.87069789]
[1748853716979,24.17470313,2503.8,2503.7,40.87069789]
[1748853717679,1.19766,2503.7,2503.1,5.2732]
[1748853717881,0.47915,2503.2,2503.1,2.0654]
[1748853718081,22.44395,2503.2,2503.1,3.22723376]
[1748853718273,22.44395,2503.2,2503.1,8.22723376]
[1748853718474,19.23615,2503.2,2503.1,3.22723376]
[1748853718677,26.83547188,2503.2,2503.1,41.96183376]
[1748853718982,26.83547188,2503.2,2503.1,40.8]
[1748853719185,26.83547188,2503.2,2503.1,41.96227118]
[1748853719777,26.8354729,2503.2,2503.1,1.16227118]
[1748853719984,26.83547088,2503.2,2503.1,1.16227118]
[1748853720281,26.83547187,2503.2,2503.1,41.96227118]
[1748853720482,26.8354694,2503.2,2503.1,41.96227118]
[1748853720780,26.83549974,2503.2,2503.1,41.96227118]
[1748853721485,27.03513481,2503.2,2503.1,41.96227118]
[1748853721686,27.03513352,2503.2,2503.1,41.96309357]
[1748853721873,26.82565,2503.2,2503.1,41.96309357]
[1748853722279,27.03716994,2503.2,2503.1,41.97212429]
[1748853722484,27.03716913,2503.2,2503.1,41.97212429]
[1748853722683,4.09616913,2503.2,2503.1,41.97212429]
[1748853722883,26.82765,2503.2,2503.1,41.97212429]
[1748853723190,27.03727427,2503.2,2503.1,41.97212429]
[1748853723485,4.0964352,2503.2,2503.1,41.97212429]
[1748853723688,4.0964352,2503.2,2503.1,43.28302429]
[1748853723885,27.0374352,2503.2,2503.1,43.28302429]
[1748853724186,27.03741505,2503.2,2503.1,43.28302429]
[1748853724384,3.88665,2503.2,2503.1,43.28302429]
[1748853724581,0.1997,2503.2,2503.1,43.28302429]
[1748853724777,0.1997,2503.2,2503.1,44.86962793]
[1748853724975,0.1997,2503.2,2503.1,46.23289218]
[1748853725178,0.47904,2503.8,2503.1,49.93672218]
[1748853725479,19.23706,2503.7,2503.6,3.2078]
[1748853725683,0.00598444,2504.1,2503.6,4.37089357]
[1748853725983,0.47905,2503.8,2503.7,46.28417947]
[1748853726284,19.23705,2503.8,2503.7,48.89472025]
[1748853726494,19.23704,2503.8,2503.7,48.89472025]
[1748853726880,19.23704,2503.8,2503.7,43.89472025]
[1748853727387,19.23704,2503.8,2503.7,46.2834056]
[1748853727985,19.23704,2503.8,2503.7,43.89472025]
[1748853728189,0.47904,2503.8,2503.7,46.28278292]
[1748853728388,0.47904,2503.8,2503.7,46.96668292]
[1748853728591,19.23504,2503.8,2503.7,46.96668292]
[1748853728983,0.0389,2503.9,2503.7,50.05767025]
[1748853729290,19.27392,2503.9,2503.8,4.93283396]
[1748853729488,19.27392,2503.9,2503.8,2.54492025]
[1748853729688,19.27392,2503.9,2503.8,7.54492025]
[1748853729885,19.27392,2503.9,2503.8,48.34492025]
[1748853730185,0.0389,2503.9,2503.8,48.34386371]
[1748853732281,0.51792,2503.9,2503.8,45.72920425]
[1748853732792,18.7919,2503.9,2503.8,45.72920425]
[1748853733289,18.7919,2503.9,2503.8,46.20824425]
[1748853733485,0.0389,2503.9,2503.8,51.20824425]
[1748853733692,0.0389,2503.9,2503.8,51.20718963]
[1748853733989,0.0389,2503.9,2503.8,48.82290371]
[1748853734189,0.0389,2503.9,2503.8,51.20697435]
[1748853734393,0.0389,2503.9,2503.8,51.20804122]
[1748853735787,0.0389,2503.9,2503.8,45.72900122]
[1748853736089,0.51792,2503.9,2503.8,45.72900122]
[1748853736290,0.51792,2503.9,2503.8,43.34493058]
[1748853736484,0.0389,2503.9,2503.8,43.34493058]
[1748853736690,0.0389,2503.9,2503.8,45.72900122]
[1748853736992,18.7899,2503.9,2503.8,46.20804122]
[1748853737193,18.7899,2503.9,2503.8,43.82397058]
[1748853737791,19.26892,2503.9,2503.8,43.34493058]
[1748853738191,19.26892,2503.9,2503.8,44.93311321]
[1748853738591,18.7899,2503.9,2503.8,45.41215321]
[1748853738790,19.26892,2503.9,2503.8,44.93311321]
[1748853739701,19.26892,2503.9,2503.8,43.34493058]
[1748853741092,19.26892,2503.9,2503.8,43.41562847]
[1748853741395,19.26692,2503.9,2503.8,43.41562847]
[1748853741599,18.7879,2503.9,2503.8,43.89466847]
[1748853741789,0.0389,2503.9,2503.8,43.89466847]
[1748853742189,18.7879,2503.9,2503.8,43.89466847]
[1748853742404,0.0389,2503.9,2503.8,45.4828511]
[1748853743099,0.0389,2503.9,2503.8,45.48194123]
[1748853744690,0.0389,2503.9,2503.8,45.00290123]
[1748853744691,0.51792,2503.9,2503.8,45.00290123]
[1748853744899,0.51792,2503.9,2503.8,43.4147186]
[1748853745693,0.51792,2503.9,2503.8,43.41479932]
[1748853745893,0.51792,2503.9,2503.8,43.22426948]
[1748853746201,1.85442,2503.9,2503.8,43.22426948]
[1748853747293,0.47902,2503.9,2503.8,40.87069789]
[1748853747605,0.0389,2503.9,2503.8,45.03056699]
[1748853747896,19.26492,2503.9,2503.8,44.55153027]
[1748853748301,19.26492,2503.9,2503.8,42.03339573]
[1748853748501,20.64032,2503.9,2503.8,42.03339573]
[1748853748797,20.64032,2503.9,2503.8,43.22494344]
[1748853749199,20.64032,2503.9,2503.8,42.03339573]
[1748853751701,20.64032,2503.9,2503.8,43.62385259]
[1748853752200,20.64032,2503.9,2503.8,42.03566996]
[1748853753401,19.26292,2503.9,2503.8,43.62385259]
[1748853753600,0.0389,2503.9,2503.8,46.48696323]
[1748853753899,0.0389,2503.9,2503.8,46.2861806]
[1748853754203,0.0389,2503.9,2503.8,43.90210996]
[1748853754394,0.51792,2503.9,2503.8,43.90210996]
[1748853754596,0.0389,2503.9,2503.8,43.90210996]
[1748853755501,0.51792,2503.9,2503.8,43.90210996]
[1748853755711,0.51792,2503.9,2503.8,42.03566996]
[1748853755907,0.51792,2503.9,2503.8,43.40976996]
[1748853760502,0.51792,2503.9,2503.8,43.41284412]
[1748853760804,0.0389,2503.9,2503.8,43.89188412]
[1748853761509,0.00598444,2504.1,2504.0,0.479]
[1748853761697,0.00598444,2504.1,2504.0,4.85484623]
[1748853762201,0.00598444,2504.1,2504.0,6.21634623]
[1748853762401,0.00598444,2504.1,2504.0,50.20726693]
[1748853762803,19.22596444,2504.1,2504.0,46.53734623]
[1748853762997,19.92766444,2504.1,2504.0,46.53734623]
[1748853763502,0.70768444,2504.1,2504.0,46.53734623]
[1748853763806,19.92766444,2504.1,2504.0,46.53734623]
[1748853764205,19.92766444,2504.1,2504.0,45.17584623]
[1748853764700,19.92766444,2504.1,2504.0,40.8]
[1748853764903,20.13673009,2504.1,2504.0,43.5631998]
[1748853765207,22.08812166,2504.1,2504.0,43.5631998]
[1748853765405,22.08811197,2504.1,2504.0,43.5631998]
[1748853765608,22.08811019,2504.1,2504.0,43.5631998]
[1748853765995,22.08811425,2504.1,2504.0,43.5631998]
[1748853766206,27.08811425,2504.1,2504.0,43.16444115]
[1748853766402,27.08810291,2504.1,2504.0,43.16444115]
[1748853766600,27.08810532,2504.1,2504.0,43.16444115]
[1748853766800,27.08809928,2504.1,2504.0,43.16444115]
[1748853767011,22.08809928,2504.1,2504.0,43.16444115]
[1748853767511,26.26407862,2504.1,2504.0,43.16444115]
[1748853767708,26.26407849,2504.1,2504.0,43.16444115]
[1748853768015,26.26400159,2504.1,2504.0,41.96781054]
[1748853768206,26.26299664,2504.1,2504.0,43.16444115]
[1748853768505,3.13806444,2504.1,2504.0,43.16444115]
[1748853768810,26.26309468,2504.1,2504.0,43.16444115]
[1748853769008,26.05406444,2504.1,2504.0,43.16444115]
[1748853769209,19.65669845,2504.1,2504.0,43.64217975]
[1748853769410,19.65666225,2504.1,2504.0,43.56217067]
[1748853769607,19.65666654,2504.1,2504.0,41.96678141]
[1748853769806,19.44768444,2504.1,2504.0,41.96678141]
[1748853770005,19.65666002,2504.1,2504.0,41.96678141]
[1748853770307,20.13565476,2504.1,2504.0,41.96678141]
[1748853770509,19.65667476,2504.1,2504.0,41.96678141]
[1748853770709,19.65667476,2504.1,2504.0,42.0374793]
[1748853771112,19.44768444,2504.1,2504.0,42.0374793]
[1748853771303,19.65666615,2504.1,2504.0,42.0374793]
[1748853771507,19.44768444,2504.1,2504.0,42.0374793]
[1748853771703,19.92666444,2504.1,2504.0,43.63263227]
[1748853771909,21.40105267,2504.1,2504.0,43.63263227]
[1748853772113,21.40104571,2504.1,2504.0,43.63263227]
[1748853772414,21.40104239,2504.1,2504.0,43.63263227]
[1748853772909,21.40103161,2504.1,2504.0,43.63263227]
[1748853773105,0.70768444,2504.1,2504.0,43.63263227]
[1748853773307,19.44568444,2504.1,2504.0,42.0374793]
[1748853773503,18.95294834,2504.1,2504.0,43.39315387]
[1748853773813,18.95294732,2504.1,2504.0,45.78611166]
[1748853774212,18.74398444,2504.1,2504.0,45.78611166]
[1748853774405,0.21497978,2504.1,2504.0,45.78611166]
[1748853774714,18.74398444,2504.1,2504.0,45.78611166]
[1748853775011,19.22296444,2504.1,2504.0,46.41991166]
[1748853775310,18.74398444,2504.1,2504.0,46.41991166]
[1748853775503,19.22296444,2504.1,2504.0,46.41991166]
[1748853777913,19.22296444,2504.1,2504.0,46.41987676]
[1748853778911,19.22296444,2504.1,2504.0,44.43037676]
[1748853779107,19.43195808,2504.1,2504.0,44.43037676]
[1748853779414,19.43194542,2504.1,2504.0,44.43037676]
[1748853780002,19.43194746,2504.1,2504.0,44.43037676]
[1748853780207,19.22296444,2504.1,2504.0,44.43037676]
[1748853780810,19.43194236,2504.1,2504.0,44.43037676]
[1748853781008,19.43194236,2504.1,2504.0,43.26365568]
[1748853781212,19.43194236,2504.1,2504.0,44.43037812]
[1748853781512,19.22296444,2504.1,2504.0,44.43037812]
[1748853781810,19.43196013,2504.1,2504.0,42.03742033]
[1748853782010,19.22296444,2504.1,2504.0,42.03742033]
[1748853782407,19.4319813,2504.1,2504.0,42.03742033]
[1748853782610,19.43200021,2504.1,2504.0,43.63254056]
[1748853782803,19.43200742,2504.1,2504.0,43.63254056]
[1748853783003,19.43200719,2504.1,2504.0,43.63254056]
[1748853783210,19.43201341,2504.1,2504.0,43.63254056]
[1748853783615,19.4320188,2504.1,2504.0,43.23385274]
[1748853783810,19.4320188,2504.1,2504.0,42.03742033]
[1748853783811,24.43199591,2504.1,2504.0,42.03742033]
[1748853784022,0.47904,2503.8,2503.7,2.79155264]
[1748853784312,0.4791,2503.5,2503.4,3.5893902]
[1748853784509,19.2131,2503.5,2503.4,44.3893902]
[1748853784714,19.42205538,2503.5,2503.4,41.99643241]
[1748853784908,19.42205538,2503.5,2503.4,41.99591266]
[1748853785110,19.42201514,2503.5,2503.4,41.99591266]
[1748853785911,19.42201514,2503.5,2503.4,40.8]
[1748853786109,19.42184828,2503.5,2503.4,40.8]
[1748853786615,19.2131,2503.5,2503.4,40.8]
[1748853786917,27.62964743,2503.5,2503.4,40.8]
[1748853787109,3.6869,2503.5,2503.4,40.8]
[1748853787309,26.80261848,2503.5,2503.4,40.8]
[1748853787509,23.59481848,2503.5,2503.4,40.8]
[1748853787719,26.80243479,2503.5,2503.4,40.8]
[1748853788109,31.5939,2503.5,2503.4,40.8]
[1748853788416,31.8024384,2503.5,2503.4,40.8]
[1748853788608,31.5939,2503.5,2503.4,40.8]
[1748853788810,31.80242229,2503.5,2503.4,40.8]
[1748853789015,31.5939,2503.5,2503.4,40.8]
[1748853789210,31.80227861,2503.5,2503.4,40.8]
[1748853789514,31.80227733,2503.5,2503.4,40.8]
[1748853790310,31.80211788,2503.5,2503.4,40.8]
[1748853790505,31.80209515,2503.5,2503.4,40.8]
[1748853790710,31.80209498,2503.5,2503.4,40.8]
[1748853790910,31.80199838,2503.5,2503.4,40.8]
[1748853791118,31.80200086,2503.5,2503.4,40.8]
[1748853791313,31.80199394,2503.5,2503.4,40.8]
[1748853791512,31.5939,2503.5,2503.4,40.8]
[1748853791709,8.06698922,2503.5,2503.4,40.8]
[1748853791911,23.59418922,2503.5,2503.4,40.8]
[1748853792113,28.3861,2503.5,2503.4,40.8]